[Event "GrandPrix_29.05"]
[Site "Chess.com"]
[Date "2020.05.29"]
[Round "2"]
[White "Alex_Molchanov"]
[Black "Benjoneliere44"]
[Result "1-0"]
[WhiteElo "2123"]
[BlackElo "1383"]
[TimeControl "600+2"]
[EndTime "9:58:44 PDT"]
[Termination "Alex_Molchanov won by resignation"]

1. d4 {[%clk 0:09:47.2]} 1... d6 {[%clk 0:09:59.6]} 2. Nf3 {[%clk 0:09:41.3]}
2... Nf6 {[%clk 0:09:59.2]} 3. g3 {[%clk 0:09:36.6]} 3... g6 {[%clk 0:09:53.6]}
4. Bg2 {[%clk 0:09:37]} 4... Bg7 {[%clk 0:09:53.8]} 5. O-O {[%clk 0:09:38.6]}
5... O-O {[%clk 0:09:55]} 6. b3 {[%clk 0:09:34.8]} 6... a5 {[%clk 0:09:54.7]} 7.
Bb2 {[%clk 0:09:29.1]} 7... a4 {[%clk 0:09:55.1]} 8. c4 {[%clk 0:09:29.4]} 8...
axb3 {[%clk 0:09:48.9]} 9. axb3 {[%clk 0:09:29.8]} 9... Rxa1 {[%clk 0:09:50.8]}
10. Bxa1 {[%clk 0:09:31.7]} 10... Ne4 {[%clk 0:09:47.6]} 11. Nfd2 {[%clk
0:09:21.2]} 11... Nxd2 {[%clk 0:09:44.8]} 12. Qxd2 {[%clk 0:09:20.4]} 12... c5
{[%clk 0:09:25.5]} 13. Na3 {[%clk 0:09:14]} 13... Nc6 {[%clk 0:09:19.4]} 14. Nb5
{[%clk 0:08:30]} 14... cxd4 {[%clk 0:08:53.9]} 15. Nxd4 {[%clk 0:08:29.4]} 15...
Qb6 {[%clk 0:08:42.7]} 16. Nb5 {[%clk 0:07:02.9]} 16... Qa5 {[%clk 0:07:31.1]}
17. Qxa5 {[%clk 0:05:56.2]} 17... Nxa5 {[%clk 0:07:33]} 18. Bxg7 {[%clk
0:05:57.3]} 18... Kxg7 {[%clk 0:07:32.5]} 19. Rb1 {[%clk 0:05:58.7]} 19... Bf5
{[%clk 0:07:11.1]} 20. Rb2 {[%clk 0:05:56.1]} 20... b6 {[%clk 0:06:32.3]} 21.
Nc3 {[%clk 0:04:48]} 21... Rb8 {[%clk 0:06:14.2]} 22. Nd5 {[%clk 0:04:43.3]}
22... Kf8 {[%clk 0:06:09.7]} 23. Nc7 {[%clk 0:04:04.6]} 23... Bd7 {[%clk
0:06:00.5]} 24. f4 {[%clk 0:03:54.7]} 24... e6 {[%clk 0:05:54.4]} 25. Kf2 {[%clk
0:03:29.2]} 25... Ke7 {[%clk 0:05:54]} 26. Nb5 {[%clk 0:03:14.5]} 26... d5
{[%clk 0:05:39.8]} 27. Na3 {[%clk 0:03:01.8]} 27... dxc4 {[%clk 0:05:19.7]} 28.
Nxc4 {[%clk 0:02:59.7]} 28... Nxc4 {[%clk 0:05:01.1]} 29. bxc4 {[%clk
0:03:01.6]} 29... Kd6 {[%clk 0:05:02.3]} 30. Ke3 {[%clk 0:02:54.6]} 30... Kc5
{[%clk 0:04:59.5]} 31. Kd3 {[%clk 0:02:46.5]} 31... Rd8 {[%clk 0:03:41.6]} 32.
Kc3 {[%clk 0:02:45.5]} 32... Be8 {[%clk 0:03:39.8]} 33. Ra2 {[%clk 0:02:21.7]}
33... Rd4 {[%clk 0:03:37.9]} 34. Ra8 {[%clk 0:02:19.9]} 34... Rxc4+ {[%clk
0:03:39]} 35. Kb3 {[%clk 0:02:13.9]} 35... Bd7 {[%clk 0:02:39.9]} 36. Ra7 {[%clk
0:01:24.6]} 36... Rd4 {[%clk 0:02:37.6]} 37. Kc3 {[%clk 0:01:25.7]} 37... Rd1
{[%clk 0:02:29.8]} 38. e4 {[%clk 0:00:38.5]} 38... b5 {[%clk 0:02:22.6]} 39. e5
{[%clk 0:00:16.5]} 39... b4+ {[%clk 0:02:09.1]} 40. Kc2 {[%clk 0:00:17.5]} 40...
Rd4 {[%clk 0:02:08.6]} 41. Rc7+ {[%clk 0:00:15.9]} 41... Kb6 {[%clk 0:02:09.2]}
42. Rb7+ {[%clk 0:00:16.9]} 42... Ka6 {[%clk 0:02:07.9]} 43. Kb3 {[%clk
0:00:14.3]} 43... Rd2 {[%clk 0:01:52.3]} 44. Be4 {[%clk 0:00:10.9]} 44... Rd4
{[%clk 0:01:36.7]} 45. Bg2 {[%clk 0:00:10.8]} 45... Bb5 {[%clk 0:01:30.9]} 46.
Rxf7 {[%clk 0:00:08.8]} 46... Rd2 {[%clk 0:01:16.7]} 47. Bh3 {[%clk 0:00:05.1]}
47... Ka5 {[%clk 0:01:08.1]} 48. Ra7+ {[%clk 0:00:06.5]} 48... Kb6 {[%clk
0:01:09.3]} 49. Re7 {[%clk 0:00:06.8]} 49... Kc5 {[%clk 0:01:07.4]} 50. Rc7+
{[%clk 0:00:07.7]} 50... Bc6 {[%clk 0:01:08.1]} 51. Bxe6 {[%clk 0:00:07.8]}
51... Rd3+ {[%clk 0:01:01.9]} 52. Kc2 {[%clk 0:00:07.6]} 52... Rc3+ {[%clk
0:01:02.9]} 53. Kb2 {[%clk 0:00:09]} 53... Kb6 {[%clk 0:01:02.2]} 54. Rc8 {[%clk
0:00:09.3]} 54... Rf3 {[%clk 0:00:54.8]} 55. Rb8+ {[%clk 0:00:07.8]} 55... Kc5
{[%clk 0:00:55.5]} 56. Rc8 {[%clk 0:00:07.1]} 56... Rf2+ {[%clk 0:00:46.3]} 57.
Kb3 {[%clk 0:00:07.6]} 57... Rf3+ {[%clk 0:00:47.6]} 58. Kc2 {[%clk 0:00:09.1]}
58... Rf2+ {[%clk 0:00:48.2]} 59. Kd3 {[%clk 0:00:10.4]} 59... Kb6 {[%clk
0:00:44.5]} 60. Rb8+ {[%clk 0:00:10.7]} 60... Kc5 {[%clk 0:00:43.4]} 61. Rc8
{[%clk 0:00:12.2]} 61... Kb6 {[%clk 0:00:43.5]} 62. Bf7 {[%clk 0:00:13.6]} 62...
Rxh2 {[%clk 0:00:30.7]} 63. e6 {[%clk 0:00:14.5]} 63... b3 {[%clk 0:00:32]} 64.
e7 {[%clk 0:00:13.8]} 64... Bb5+ {[%clk 0:00:33.4]} 65. Kc3 {[%clk 0:00:12.1]}
65... b2 {[%clk 0:00:30.6]} 66. Rb8+ {[%clk 0:00:11.1]} 66... Ka6 {[%clk
0:00:24.4]} 67. Rxb5 {[%clk 0:00:13]} 67... Kxb5 {[%clk 0:00:13.4]} 68. e8=Q+
{[%clk 0:00:14.1]} 1-0

[Event "GrandPrix_29.05"]
[Site "Chess.com"]
[Date "2020.05.29"]
[Round "2"]
[White "matej2221"]
[Black "WoodlandMagic"]
[Result "1-0"]
[WhiteElo "2015"]
[BlackElo "2101"]
[TimeControl "600+2"]
[EndTime "9:58:45 PDT"]
[Termination "matej2221 won on time"]

1. e4 {[%clk 0:10:00.4]} 1... e5 {[%clk 0:09:59.3]} 2. Nf3 {[%clk 0:10:00]} 2...
Nc6 {[%clk 0:09:59.9]} 3. d4 {[%clk 0:09:58.5]} 3... exd4 {[%clk 0:09:59.3]} 4.
Nxd4 {[%clk 0:09:59.8]} 4... Bc5 {[%clk 0:09:59.8]} 5. Nb3 {[%clk 0:10:00.5]}
5... Bb6 {[%clk 0:10:00.1]} 6. Nc3 {[%clk 0:10:01.9]} 6... Nge7 {[%clk
0:09:59.4]} 7. Qe2 {[%clk 0:10:02.8]} 7... d6 {[%clk 0:09:57.3]} 8. Be3 {[%clk
0:10:03.8]} 8... O-O {[%clk 0:09:55.3]} 9. O-O-O {[%clk 0:10:03.9]} 9... f5
{[%clk 0:09:50.9]} 10. f4 {[%clk 0:09:34.9]} 10... fxe4 {[%clk 0:09:46.1]} 11.
Bxb6 {[%clk 0:09:10.2]} 11... axb6 {[%clk 0:09:43.7]} 12. Qxe4 {[%clk
0:08:31.7]} 12... Bf5 {[%clk 0:09:03.1]} 13. Bc4+ {[%clk 0:08:14.2]} 13... Kh8
{[%clk 0:08:58.4]} 14. Qf3 {[%clk 0:07:52.7]} 14... Qd7 {[%clk 0:08:06.4]} 15.
h3 {[%clk 0:07:46.3]} 15... Nb4 {[%clk 0:08:05]} 16. Nd4 {[%clk 0:07:39.2]}
16... d5 {[%clk 0:07:22.3]} 17. a3 {[%clk 0:05:40]} 17... dxc4 {[%clk
0:05:36.8]} 18. axb4 {[%clk 0:05:34.8]} 18... Ra1+ {[%clk 0:02:45.6]} 19. Nb1
{[%clk 0:05:35.2]} 19... Qa4 {[%clk 0:02:43.8]} 20. Nxf5 {[%clk 0:05:20.6]}
20... Nxf5 {[%clk 0:02:37.1]} 21. Qe4 {[%clk 0:04:56.2]} 21... Nd6 {[%clk
0:02:20.8]} 22. Qe5 {[%clk 0:04:18.1]} 22... Ra8 {[%clk 0:02:03.6]} 23. c3
{[%clk 0:03:30.3]} 23... Qa2 {[%clk 0:01:34.9]} 24. Kc2 {[%clk 0:03:24.6]} 24...
Qb3+ {[%clk 0:01:35.2]} 25. Kc1 {[%clk 0:03:21.3]} 25... R8a2 {[%clk 0:01:04.4]}
26. Qe2 {[%clk 0:03:06.3]} 26... Qa4 {[%clk 0:00:47.5]} 27. Qc2 {[%clk
0:02:14.3]} 27... Rxb1+ {[%clk 0:00:46]} 28. Qxb1 {[%clk 0:02:15.4]} 28... Ra1
{[%clk 0:00:47.3]} 29. Rhe1 {[%clk 0:02:11.8]} 29... h6 {[%clk 0:00:36.9]} 30.
g4 {[%clk 0:01:58.8]} 30... Rxb1+ {[%clk 0:00:35.1]} 31. Kxb1 {[%clk 0:02:00.7]}
31... Kh7 {[%clk 0:00:29.7]} 32. f5 {[%clk 0:01:46.7]} 32... Qc6 {[%clk
0:00:14.9]} 33. Re7 {[%clk 0:01:38.4]} 33... Qf3 {[%clk 0:00:15.6]} 34. Rde1
{[%clk 0:01:39.7]} 34... Kg8 {[%clk 0:00:07.3]} 35. R1e3 {[%clk 0:01:00.4]}
35... Qd1+ {[%clk 0:00:07.7]} 36. Ka2 {[%clk 0:01:00.2]} 36... Qa4+ {[%clk
0:00:09.6]} 37. Kb1 {[%clk 0:01:01.4]} 37... Qd1+ {[%clk 0:00:10.9]} 38. Ka2
{[%clk 0:01:02.2]} 38... Qd5 {[%clk 0:00:03.4]} 39. Rxc7 {[%clk 0:00:49.6]}
39... Ne4 {[%clk 0:00:02.8]} 40. h4 {[%clk 0:00:25.1]} 40... Nd2 {[%clk
0:00:03]} 41. Re8+ {[%clk 0:00:18.5]} 41... Kh7 {[%clk 0:00:04.2]} 42. Ree7
{[%clk 0:00:20]} 42... Qd3 {[%clk 0:00:03.8]} 43. Rxg7+ {[%clk 0:00:19.9]} 43...
Kh8 {[%clk 0:00:04.9]} 44. Rh7+ {[%clk 0:00:20.4]} 44... Kg8 {[%clk 0:00:06.3]}
45. Rhg7+ {[%clk 0:00:19.9]} 45... Kf8 {[%clk 0:00:06.3]} 46. Rgf7+ {[%clk
0:00:07.5]} 46... Ke8 {[%clk 0:00:07.2]} 47. Rce7+ {[%clk 0:00:05.6]} 47... Kd8
{[%clk 0:00:08.1]} 48. Re1 {[%clk 0:00:03.8]} 48... Qc2 {[%clk 0:00:07.4]} 49.
Rf8+ {[%clk 0:00:03.7]} 49... Kd7 {[%clk 0:00:08]} 50. Ra8 {[%clk 0:00:05.3]}
50... Qb3+ {[%clk 0:00:08.4]} 51. Ka1 {[%clk 0:00:06.6]} 51... Qc2 {[%clk
0:00:06.9]} 52. Ra7 {[%clk 0:00:03.4]} 52... Kc6 {[%clk 0:00:07]} 53. Re6+
{[%clk 0:00:03.9]} 53... Kd5 {[%clk 0:00:08]} 54. Re1 {[%clk 0:00:05.3]} 54...
h5 {[%clk 0:00:07.7]} 55. gxh5 {[%clk 0:00:05.7]} 55... Qxf5 {[%clk 0:00:08.5]}
56. Rxb7 {[%clk 0:00:06.3]} 56... Qc2 {[%clk 0:00:06.3]} 57. Ra7 {[%clk
0:00:05.7]} 57... Nb3+ {[%clk 0:00:04.1]} 58. Ka2 {[%clk 0:00:06.7]} 58... Nc1+
{[%clk 0:00:04.3]} 59. Ka1 {[%clk 0:00:06.5]} 59... Nd3 {[%clk 0:00:05.1]} 60.
Rb1 {[%clk 0:00:07.5]} 60... Nc1 {[%clk 0:00:04.5]} 61. h6 {[%clk 0:00:05.1]}
61... Kc6 {[%clk 0:00:04]} 62. h7 {[%clk 0:00:05.5]} 62... Nb3+ {[%clk
0:00:02.7]} 63. Ka2 {[%clk 0:00:06.9]} 63... Nd2 {[%clk 0:00:03]} 64. Rg1 {[%clk
0:00:05.2]} 1-0

[Event "GrandPrix_29.05"]
[Site "Chess.com"]
[Date "2020.05.29"]
[Round "2"]
[White "arminmusovic"]
[Black "KruHor"]
[Result "0-1"]
[WhiteElo "2293"]
[BlackElo "2697"]
[TimeControl "600+2"]
[EndTime "9:58:47 PDT"]
[Termination "KruHor won by resignation"]

1. a3 {[%clk 0:10:01.9]} 1... Nf6 {[%clk 0:09:19.6]} 2. Nc3 {[%clk 0:10:03.4]}
2... g6 {[%clk 0:09:09.9]} 3. e4 {[%clk 0:10:02.7]} 3... d6 {[%clk 0:09:06.8]}
4. d4 {[%clk 0:10:03.6]} 4... Bg7 {[%clk 0:09:07.1]} 5. Bg5 {[%clk 0:10:04.4]}
5... h6 {[%clk 0:08:59.9]} 6. Bh4 {[%clk 0:10:05]} 6... Nbd7 {[%clk 0:08:43.1]}
7. f4 {[%clk 0:10:03.7]} 7... e5 {[%clk 0:07:22.5]} 8. dxe5 {[%clk 0:09:56.6]}
8... dxe5 {[%clk 0:07:22.9]} 9. fxe5 {[%clk 0:09:54.3]} 9... Nxe5 {[%clk
0:07:23.1]} 10. Qxd8+ {[%clk 0:09:56.2]} 10... Kxd8 {[%clk 0:07:23.5]} 11.
O-O-O+ {[%clk 0:09:42.1]} 11... Bd7 {[%clk 0:07:08.8]} 12. Nf3 {[%clk
0:09:34.3]} 12... Nxf3 {[%clk 0:07:08.8]} 13. gxf3 {[%clk 0:09:36.2]} 13... g5
{[%clk 0:07:09.5]} 14. Bg3 {[%clk 0:09:27.3]} 14... Kc8 {[%clk 0:07:04.8]} 15.
Nb5 {[%clk 0:08:52.6]} 15... Nh5 {[%clk 0:06:45.7]} 16. Bf2 {[%clk 0:08:26.1]}
16... Bxb5 {[%clk 0:05:57.3]} 17. Bxb5 {[%clk 0:08:25.8]} 17... Be5 {[%clk
0:05:32.5]} 18. Bc4 {[%clk 0:07:46.4]} 18... f6 {[%clk 0:05:18.7]} 19. Be6+
{[%clk 0:07:22.1]} 19... Kb8 {[%clk 0:05:18.9]} 20. Rd7 {[%clk 0:06:59.2]} 20...
Nf4 {[%clk 0:05:14.5]} 21. Bc4 {[%clk 0:06:20.6]} 21... a6 {[%clk 0:05:09.1]}
22. Rhd1 {[%clk 0:05:24.2]} 22... b5 {[%clk 0:05:05.5]} 23. Bf1 {[%clk
0:04:51.6]} 23... Kb7 {[%clk 0:04:51.5]} 24. c4 {[%clk 0:04:52.6]} 24... bxc4
{[%clk 0:04:27]} 25. Bxc4 {[%clk 0:04:54.5]} 25... a5 {[%clk 0:03:52.7]} 26. Be3
{[%clk 0:04:43.2]} 26... Rab8 {[%clk 0:03:44.5]} 27. Bb5 {[%clk 0:04:34.5]}
27... h5 {[%clk 0:03:30.5]} 28. a4 {[%clk 0:04:21.7]} 28... h4 {[%clk 0:03:30]}
29. R1d2 {[%clk 0:03:04.2]} 29... Rhe8 {[%clk 0:03:26.3]} 30. Kb1 {[%clk
0:02:50]} 30... Re6 {[%clk 0:03:25.3]} 31. Rc2 {[%clk 0:02:45]} 31... Rbe8
{[%clk 0:03:00.1]} 32. Bc5 {[%clk 0:02:21.3]} 32... Rh8 {[%clk 0:02:43.8]} 33.
Be3 {[%clk 0:02:15.1]} 33... h3 {[%clk 0:02:30.5]} 34. Bf2 {[%clk 0:02:08.5]}
34... Rhe8 {[%clk 0:02:24]} 35. Rh7 {[%clk 0:01:49.9]} 35... R8e7 {[%clk
0:02:22.1]} 36. Rh8 {[%clk 0:01:50.8]} 36... Rg7 {[%clk 0:02:10.9]} 37. Rd8
{[%clk 0:01:43.9]} 37... c6 {[%clk 0:01:59]} 38. Ba6+ {[%clk 0:01:26.5]} 38...
Kc7 {[%clk 0:01:43.7]} 39. Rc8+ {[%clk 0:01:27.1]} 39... Kd7 {[%clk 0:01:43.2]}
40. R8xc6 {[%clk 0:01:23.2]} 40... Rxc6 {[%clk 0:01:39.6]} 41. Bb5 {[%clk
0:01:24.5]} 41... Ke7 {[%clk 0:01:24]} 42. Bxc6 {[%clk 0:01:24.2]} 42... Ng2
{[%clk 0:01:12]} 43. Bc5+ {[%clk 0:01:24]} 43... Kf7 {[%clk 0:01:11.9]} 44. Bg1
{[%clk 0:01:21.6]} 44... Kg6 {[%clk 0:01:05.1]} 45. b4 {[%clk 0:00:57.9]} 45...
axb4 {[%clk 0:01:02.4]} 46. a5 {[%clk 0:00:59.8]} 46... b3 {[%clk 0:00:43.2]}
47. Rc5 {[%clk 0:01:00.3]} 47... Bb8 {[%clk 0:00:31.7]} 48. Be8+ {[%clk
0:00:56]} 48... Kh6 {[%clk 0:00:28]} 49. Rc8 {[%clk 0:00:57.2]} 49... Ba7 {[%clk
0:00:27.1]} 50. Bc5 {[%clk 0:00:49.6]} 50... Bxc5 {[%clk 0:00:25.3]} 51. Rxc5
{[%clk 0:00:51.5]} 51... Nh4 {[%clk 0:00:14.8]} 52. Bc6 {[%clk 0:00:31.5]} 52...
Nxf3 {[%clk 0:00:14.2]} 53. a6 {[%clk 0:00:30.6]} 53... Nxh2 {[%clk 0:00:13.5]}
54. Bb7 {[%clk 0:00:19.7]} 54... Nf1 {[%clk 0:00:11.6]} 55. a7 {[%clk
0:00:16.9]} 55... h2 {[%clk 0:00:11.3]} 56. e5 {[%clk 0:00:15.7]} 56... Rxb7
{[%clk 0:00:10.3]} 57. a8=Q {[%clk 0:00:16.7]} 57... Nd2+ {[%clk 0:00:08.5]} 58.
Kb2 {[%clk 0:00:16.8]} 58... h1=Q {[%clk 0:00:04.1]} 59. Qh8+ {[%clk 0:00:17.8]}
59... Rh7 {[%clk 0:00:04.4]} 60. Qxf6+ {[%clk 0:00:18.1]} 60... Kh5 {[%clk
0:00:05.2]} 61. Rc1 {[%clk 0:00:17.5]} 61... Qe4 {[%clk 0:00:04.3]} 62. Qf2
{[%clk 0:00:17.2]} 62... Nc4+ {[%clk 0:00:03.5]} 63. Rxc4 {[%clk 0:00:17.1]}
63... Qxc4 {[%clk 0:00:04.2]} 64. Qh2+ {[%clk 0:00:16.8]} 64... Kg6 {[%clk
0:00:04.7]} 65. Qd2 {[%clk 0:00:15.7]} 65... Qc2+ {[%clk 0:00:05.3]} 66. Qxc2+
{[%clk 0:00:17.2]} 66... bxc2 {[%clk 0:00:06.1]} 67. e6 {[%clk 0:00:19.1]} 67...
Re7 {[%clk 0:00:06.5]} 0-1

[Event "GrandPrix_29.05"]
[Site "Chess.com"]
[Date "2020.05.29"]
[Round "2"]
[White "farhadtahirov"]
[Black "IljaJoke"]
[Result "0-1"]
[WhiteElo "1968"]
[BlackElo "2320"]
[TimeControl "600+2"]
[EndTime "9:58:47 PDT"]
[Termination "IljaJoke won by resignation"]

1. c4 {[%clk 0:09:54.5]} 1... g6 {[%clk 0:09:59.5]} 2. Nc3 {[%clk 0:09:54.2]}
2... Bg7 {[%clk 0:10:00.1]} 3. Nf3 {[%clk 0:09:55.7]} 3... c5 {[%clk 0:09:56.4]}
4. g3 {[%clk 0:09:46.7]} 4... Nc6 {[%clk 0:09:49.8]} 5. Bg2 {[%clk 0:09:47.9]}
5... d6 {[%clk 0:09:50.9]} 6. O-O {[%clk 0:09:48.1]} 6... Rb8 {[%clk 0:09:40.8]}
7. Rb1 {[%clk 0:08:58.2]} 7... a6 {[%clk 0:09:25.6]} 8. a3 {[%clk 0:07:52.5]}
8... b5 {[%clk 0:09:11.9]} 9. cxb5 {[%clk 0:05:30.2]} 9... axb5 {[%clk
0:09:13.8]} 10. b4 {[%clk 0:05:13.1]} 10... cxb4 {[%clk 0:09:13.5]} 11. Nd5
{[%clk 0:04:13.5]} 11... bxa3 {[%clk 0:08:26.5]} 12. Bxa3 {[%clk 0:04:12.9]}
12... Bd7 {[%clk 0:08:19.6]} 13. Qb3 {[%clk 0:04:00.6]} 13... Nh6 {[%clk
0:06:57.5]} 14. Bb2 {[%clk 0:03:29.9]} 14... O-O {[%clk 0:06:50.2]} 15. Bxg7
{[%clk 0:03:28]} 15... Kxg7 {[%clk 0:06:52.1]} 16. Rfc1 {[%clk 0:03:26.4]} 16...
f6 {[%clk 0:06:39.5]} 17. Rxc6 {[%clk 0:02:51.9]} 17... Bxc6 {[%clk 0:06:31.7]}
18. Nd4 {[%clk 0:02:49.8]} 18... Bd7 {[%clk 0:05:27]} 19. Nf4 {[%clk 0:02:48.1]}
19... Qb6 {[%clk 0:05:20.6]} 20. Nde6+ {[%clk 0:02:42.2]} 20... Kh8 {[%clk
0:04:35.2]} 21. Nxf8 {[%clk 0:02:06.7]} 21... Rxf8 {[%clk 0:04:37.1]} 22. Nd5
{[%clk 0:01:55.9]} 22... Qd8 {[%clk 0:04:36.5]} 23. Ra1 {[%clk 0:01:01.3]} 23...
e6 {[%clk 0:03:54]} 24. Nf4 {[%clk 0:00:50.6]} 24... d5 {[%clk 0:03:36.7]} 25.
Ra7 {[%clk 0:00:40.8]} 25... Rf7 {[%clk 0:02:58.3]} 26. Qa3 {[%clk 0:00:30.3]}
26... Kg7 {[%clk 0:02:58.7]} 27. Nd3 {[%clk 0:00:26.2]} 27... Be8 {[%clk
0:02:34.9]} 28. Nc5 {[%clk 0:00:24.8]} 28... Qd6 {[%clk 0:02:27.7]} 29. Bh3
{[%clk 0:00:19.9]} 29... Nf5 {[%clk 0:02:19.5]} 30. Bxf5 {[%clk 0:00:20]} 30...
gxf5 {[%clk 0:02:21.4]} 31. Ra8 {[%clk 0:00:11.7]} 31... Re7 {[%clk 0:01:49.3]}
32. d4 {[%clk 0:00:11.8]} 32... e5 {[%clk 0:01:41.2]} 33. e3 {[%clk 0:00:11.7]}
33... h5 {[%clk 0:01:35.9]} 34. Ra7 {[%clk 0:00:11.7]} 34... Rxa7 {[%clk
0:01:22.4]} 35. Qxa7+ {[%clk 0:00:12]} 35... Kg6 {[%clk 0:01:23.9]} 36. Qa8
{[%clk 0:00:09]} 36... Bf7 {[%clk 0:01:11.8]} 37. Qb7 {[%clk 0:00:09.5]} 37...
h4 {[%clk 0:01:06.6]} 38. gxh4 {[%clk 0:00:09.9]} 38... exd4 {[%clk 0:01:05.1]}
39. exd4 {[%clk 0:00:08.2]} 39... Be8 {[%clk 0:00:40.9]} 40. Nd3 {[%clk
0:00:06.1]} 40... f4 {[%clk 0:00:37.2]} 41. h5+ {[%clk 0:00:05.1]} 41... Kh6
{[%clk 0:00:36.4]} 42. Qc8 {[%clk 0:00:04.4]} 42... Qd7 {[%clk 0:00:29.9]} 43.
Qxd7 {[%clk 0:00:04.6]} 43... Bxd7 {[%clk 0:00:31.8]} 44. Nxf4 {[%clk
0:00:06.2]} 44... b4 {[%clk 0:00:31.7]} 45. Nd3 {[%clk 0:00:05.6]} 45... b3
{[%clk 0:00:31.6]} 46. Kg2 {[%clk 0:00:06.7]} 46... Bf5 {[%clk 0:00:31.8]} 47.
Nb2 {[%clk 0:00:08.4]} 47... Kxh5 {[%clk 0:00:31.2]} 48. Kg3 {[%clk 0:00:09.8]}
48... Bc2 {[%clk 0:00:30]} 49. h4 {[%clk 0:00:11]} 49... Kg6 {[%clk 0:00:26.9]}
50. Na4 {[%clk 0:00:11.1]} 50... Kf5 {[%clk 0:00:26.6]} 51. Kf3 {[%clk
0:00:11.1]} 51... Bd1+ {[%clk 0:00:26.2]} 52. Ke3 {[%clk 0:00:09.2]} 52... Kg4
{[%clk 0:00:27.5]} 53. Nb2 {[%clk 0:00:09.7]} 53... Bc2 {[%clk 0:00:28]} 54. Na4
{[%clk 0:00:04.5]} 54... Kxh4 {[%clk 0:00:28.9]} 55. Kf4 {[%clk 0:00:05.7]}
55... Kh3 {[%clk 0:00:29.4]} 56. Kf3 {[%clk 0:00:06.5]} 56... Kh2 {[%clk
0:00:30.5]} 57. Nb2 {[%clk 0:00:05.9]} 57... Kg1 {[%clk 0:00:31.6]} 58. Ke3
{[%clk 0:00:04.5]} 58... Kf1 {[%clk 0:00:32.6]} 59. Na4 {[%clk 0:00:03.4]} 59...
Kg2 {[%clk 0:00:30.5]} 60. Nb2 {[%clk 0:00:04.5]} 60... f5 {[%clk 0:00:28.2]}
61. f4 {[%clk 0:00:04.6]} 61... Kf1 {[%clk 0:00:26.5]} 62. Na4 {[%clk
0:00:05.1]} 62... Ke1 {[%clk 0:00:27.6]} 63. Nb2 {[%clk 0:00:06.4]} 63... Be4
{[%clk 0:00:28.3]} 64. Nd3+ {[%clk 0:00:07.6]} 64... Bxd3 {[%clk 0:00:25.4]} 65.
Kxd3 {[%clk 0:00:08.2]} 65... b2 {[%clk 0:00:25.8]} 66. Kc2 {[%clk 0:00:09.5]}
66... b1=Q+ {[%clk 0:00:26.8]} 67. Kxb1 {[%clk 0:00:10.7]} 67... Kd2 {[%clk
0:00:28.2]} 68. Kb2 {[%clk 0:00:11.4]} 68... Kd3 {[%clk 0:00:29.5]} 69. Kb3
{[%clk 0:00:12.5]} 69... Kxd4 {[%clk 0:00:30.8]} 70. Kc2 {[%clk 0:00:14.1]}
70... Ke3 {[%clk 0:00:31.6]} 71. Kd1 {[%clk 0:00:16]} 71... Kxf4 {[%clk
0:00:31.6]} 72. Ke1 {[%clk 0:00:17.9]} 72... Ke3 {[%clk 0:00:32.6]} 73. Kd1
{[%clk 0:00:18.1]} 73... d4 {[%clk 0:00:34]} 0-1